[Event "Early-Titled-Tuesday-Blitz-October-03-2023"]
[Site "Chess.com"]
[Date "2023.10.03"]
[Round "11"]
[White "Jospem"]
[Black "Firouzja2003"]
[Result "1-0"]
[WhiteElo "3078"]
[BlackElo "3120"]
[TimeControl "180+1"]
[EndTime "10:08:50 PDT"]
[Termination "Jospem won by resignation"]

1. e4 {[%clk 0:03:00.9]} 1... e5 {[%clk 0:02:59.7]} 2. Nf3 {[%clk 0:03:01.1]}
2... Nc6 {[%clk 0:03:00.2]} 3. Bb5 {[%clk 0:03:00.8]} 3... Nf6 {[%clk
0:03:00.5]} 4. d3 {[%clk 0:03:00.8]} 4... Bc5 {[%clk 0:02:58.6]} 5. O-O {[%clk
0:03:00.6]} 5... Nd4 {[%clk 0:02:49.4]} 6. Be3 {[%clk 0:03:00.6]} 6... Nxf3+
{[%clk 0:02:44.6]} 7. Qxf3 {[%clk 0:03:01.5]} 7... Bxe3 {[%clk 0:02:44.3]} 8.
fxe3 {[%clk 0:03:02.4]} 8... O-O {[%clk 0:02:43.1]} 9. Nc3 {[%clk 0:03:02.7]}
9... d6 {[%clk 0:02:38.9]} 10. Bc4 {[%clk 0:03:01.9]} 10... Be6 {[%clk
0:02:37.5]} 11. h3 {[%clk 0:03:01.2]} 11... c6 {[%clk 0:02:29.2]} 12. Bb3 {[%clk
0:02:50.7]} 12... a5 {[%clk 0:02:25.8]} 13. Qg3 {[%clk 0:02:46.3]} 13... b5
{[%clk 0:02:21.5]} 14. Rad1 {[%clk 0:02:25.3]} 14... Qe7 {[%clk 0:02:10.2]} 15.
Bxe6 {[%clk 0:02:17.5]} 15... fxe6 {[%clk 0:02:03.3]} 16. a4 {[%clk 0:02:12.4]}
16... b4 {[%clk 0:02:01.9]} 17. Nb1 {[%clk 0:02:12.7]} 17... Rf7 {[%clk
0:01:56.2]} 18. Nd2 {[%clk 0:02:12.6]} 18... Raf8 {[%clk 0:01:56.5]} 19. Nc4
{[%clk 0:01:59]} 19... Qc7 {[%clk 0:01:56]} 20. Rf3 {[%clk 0:01:55.1]} 20... Nd7
{[%clk 0:01:51.9]} 21. Rdf1 {[%clk 0:01:40.6]} 21... Rxf3 {[%clk 0:01:43.6]} 22.
Rxf3 {[%clk 0:01:41.5]} 22... Rxf3 {[%clk 0:01:43.6]} 23. Qxf3 {[%clk
0:01:42.4]} 23... d5 {[%clk 0:01:40.9]} 24. Nd2 {[%clk 0:01:42.7]} 24... Nc5
{[%clk 0:01:37.5]} 25. b3 {[%clk 0:01:42.6]} 25... Nd7 {[%clk 0:01:33]} 26. Qg4
{[%clk 0:01:39.7]} 26... Qd6 {[%clk 0:01:31.7]} 27. Nf3 {[%clk 0:01:13.2]} 27...
Nf6 {[%clk 0:01:25.7]} 28. Qg5 {[%clk 0:01:13.6]} 28... Qc5 {[%clk 0:00:36.8]}
29. Qxe5 {[%clk 0:01:12.5]} 29... Qxe3+ {[%clk 0:00:25.2]} 30. Kh2 {[%clk
0:01:12.8]} 30... dxe4 {[%clk 0:00:17]} 31. Ng5 {[%clk 0:00:38.9]} 31... Qa7
{[%clk 0:00:16.1]} 32. Qxe6+ {[%clk 0:00:37.9]} 32... Kf8 {[%clk 0:00:16.6]} 33.
Qxc6 {[%clk 0:00:16.7]} 33... exd3 {[%clk 0:00:11.9]} 34. Qc8+ {[%clk
0:00:15.6]} 34... Ke7 {[%clk 0:00:12.3]} 35. Qe6+ {[%clk 0:00:15.7]} 35... Kf8
{[%clk 0:00:12]} 36. Qd6+ {[%clk 0:00:16.2]} 36... Ke8 {[%clk 0:00:12.4]} 37.
Qxd3 {[%clk 0:00:15.2]} 37... Qc7+ {[%clk 0:00:12.8]} 38. Kh1 {[%clk 0:00:14.4]}
38... Qe5 {[%clk 0:00:09.5]} 39. Qb5+ {[%clk 0:00:10.1]} 39... Qxb5 {[%clk
0:00:09.3]} 40. axb5 {[%clk 0:00:11]} 40... Kd7 {[%clk 0:00:09.4]} 41. Kg1
{[%clk 0:00:08.6]} 41... Nd5 {[%clk 0:00:05.5]} 42. Kf2 {[%clk 0:00:05.9]} 42...
Nc3 {[%clk 0:00:05.6]} 43. b6 {[%clk 0:00:05.7]} 43... Kc6 {[%clk 0:00:04.7]}
44. Ne6 {[%clk 0:00:05.8]} 44... g6 {[%clk 0:00:03.9]} 45. Nf8 {[%clk
0:00:05.5]} 45... Nb5 {[%clk 0:00:03.2]} 46. Ke3 {[%clk 0:00:05.4]} 46... Kxb6
{[%clk 0:00:03.3]} 47. Nxh7 {[%clk 0:00:05.5]} 47... Kc5 {[%clk 0:00:03.9]} 48.
Nf8 {[%clk 0:00:04.1]} 48... Nd4 {[%clk 0:00:04.4]} 49. Kd3 {[%clk 0:00:04.7]}
49... g5 {[%clk 0:00:04.1]} 50. Nd7+ {[%clk 0:00:05.3]} 50... Kd5 {[%clk
0:00:04.3]} 51. Nf6+ {[%clk 0:00:06]} 51... Ke5 {[%clk 0:00:04.4]} 52. Ng4+
{[%clk 0:00:06.4]} 52... Kd5 {[%clk 0:00:05.1]} 53. Ne3+ {[%clk 0:00:07.1]}
53... Kc5 {[%clk 0:00:03.7]} 54. Nc4 {[%clk 0:00:07.6]} 54... Nc6 {[%clk
0:00:03.5]} 55. g3 {[%clk 0:00:06.3]} 55... Kd5 {[%clk 0:00:03.5]} 56. h4 {[%clk
0:00:05.1]} 56... gxh4 {[%clk 0:00:03.2]} 57. gxh4 {[%clk 0:00:06]} 57... Kc5
{[%clk 0:00:01.4]} 58. h5 {[%clk 0:00:06.1]} 58... Ne7 {[%clk 0:00:01.2]} 59. h6
{[%clk 0:00:06.2]} 59... Ng6 {[%clk 0:00:01.8]} 60. h7 {[%clk 0:00:06.7]} 60...
a4 {[%clk 0:00:01.4]} 61. bxa4 {[%clk 0:00:05.9]} 61... Nf4+ {[%clk 0:00:02.3]}
62. Ke4 {[%clk 0:00:06.5]} 62... Ng6 {[%clk 0:00:03.1]} 63. Ne3 {[%clk
0:00:06.8]} 63... Nh8 {[%clk 0:00:02.6]} 64. Kf5 {[%clk 0:00:07.2]} 64... Nf7
{[%clk 0:00:03.1]} 65. Kf6 {[%clk 0:00:07.4]} 65... Nh8 {[%clk 0:00:03.8]} 66.
Kg7 {[%clk 0:00:08]} 1-0

[Event "Early-Titled-Tuesday-Blitz-October-03-2023"]
[Site "Chess.com"]
[Date "2023.10.03"]
[Round "11"]
[White "MatyChess1"]
[Black "Vaathi_Coming"]
[Result "0-1"]
[WhiteElo "2744"]
[BlackElo "2884"]
[TimeControl "180+1"]
[EndTime "10:08:57 PDT"]
[Termination "Vaathi_Coming won by resignation"]

1. d4 {[%clk 0:03:00.9]} 1... g6 {[%clk 0:02:58.9]} 2. e4 {[%clk 0:02:58.7]}
2... d6 {[%clk 0:02:58.3]} 3. Nf3 {[%clk 0:02:58.9]} 3... Bg7 {[%clk 0:02:58.1]}
4. Bb5+ {[%clk 0:02:59.5]} 4... c6 {[%clk 0:02:57.7]} 5. Bd3 {[%clk 0:02:59.5]}
5... Nf6 {[%clk 0:02:58]} 6. O-O {[%clk 0:02:59.6]} 6... O-O {[%clk 0:02:37.5]}
7. c3 {[%clk 0:02:59.8]} 7... Qc7 {[%clk 0:02:35.8]} 8. h3 {[%clk 0:02:59]} 8...
e5 {[%clk 0:02:35.6]} 9. Nbd2 {[%clk 0:02:55.5]} 9... Re8 {[%clk 0:02:30.1]} 10.
Re1 {[%clk 0:02:55.6]} 10... b6 {[%clk 0:02:21.6]} 11. a4 {[%clk 0:02:54]} 11...
Ba6 {[%clk 0:02:20.9]} 12. Bc2 {[%clk 0:02:44.7]} 12... Nbd7 {[%clk 0:02:19.8]}
13. b3 {[%clk 0:02:39.6]} 13... d5 {[%clk 0:02:19.2]} 14. Bb2 {[%clk 0:02:25.2]}
14... dxe4 {[%clk 0:02:18.2]} 15. Nxe4 {[%clk 0:02:22.7]} 15... Nxe4 {[%clk
0:02:05.9]} 16. Bxe4 {[%clk 0:02:22.6]} 16... f5 {[%clk 0:02:06.7]} 17. Bd3
{[%clk 0:02:17.7]} 17... Bxd3 {[%clk 0:02:05.1]} 18. Qxd3 {[%clk 0:02:18.6]}
18... e4 {[%clk 0:01:52.1]} 19. Qc4+ {[%clk 0:02:18]} 19... Kh8 {[%clk
0:01:52.1]} 20. Ng5 {[%clk 0:02:15.9]} 20... Bf6 {[%clk 0:01:52.4]} 21. Bc1
{[%clk 0:01:51.8]} 21... Re7 {[%clk 0:01:38.3]} 22. Nf7+ {[%clk 0:01:48]} 22...
Kg8 {[%clk 0:01:19.7]} 23. Ng5+ {[%clk 0:01:11.9]} 23... Kh8 {[%clk 0:01:16]}
24. Nf7+ {[%clk 0:01:10.8]} 24... Kg8 {[%clk 0:01:15.4]} 25. Ne5+ {[%clk
0:00:28.1]} 25... Kg7 {[%clk 0:01:13.3]} 26. Nxc6 {[%clk 0:00:21.3]} 26... Ree8
{[%clk 0:01:13.6]} 27. b4 {[%clk 0:00:11.6]} 27... f4 {[%clk 0:01:04.3]} 28. b5
{[%clk 0:00:11.6]} 28... e3 {[%clk 0:00:27.3]} 29. fxe3 {[%clk 0:00:12.5]} 29...
Bh4 {[%clk 0:00:26.8]} 30. Rf1 {[%clk 0:00:12.6]} 30... fxe3 {[%clk 0:00:21.1]}
31. Qf7+ {[%clk 0:00:12.7]} 31... Kh8 {[%clk 0:00:21.3]} 32. c4 {[%clk
0:00:03.7]} 32... e2 {[%clk 0:00:11.1]} 33. Bb2 {[%clk 0:00:04.5]} 33... exf1=Q+
{[%clk 0:00:10.4]} 34. Rxf1 {[%clk 0:00:05.4]} 34... Re2 {[%clk 0:00:09.1]} 35.
Ba1 {[%clk 0:00:04.2]} 35... Bf6 {[%clk 0:00:02.7]} 36. Rxf6 {[%clk 0:00:03.2]}
36... Qg3 {[%clk 0:00:02.2]} 37. Rf2 {[%clk 0:00:03.3]} 37... Qxf2+ {[%clk
0:00:01.9]} 38. Qxf2 {[%clk 0:00:03.1]} 38... Rxf2 {[%clk 0:00:02.8]} 39. Kxf2
{[%clk 0:00:03.8]} 39... Kg8 {[%clk 0:00:03.4]} 40. d5 {[%clk 0:00:04.3]} 40...
Re8 {[%clk 0:00:03.1]} 41. Bd4 {[%clk 0:00:04.7]} 41... Re4 {[%clk 0:00:02.8]}
42. Kf3 {[%clk 0:00:04.5]} 42... Re1 {[%clk 0:00:03.1]} 43. Nxa7 {[%clk
0:00:05]} 43... Rc1 {[%clk 0:00:02.8]} 44. Nc8 {[%clk 0:00:03]} 44... Rxc4
{[%clk 0:00:03.4]} 45. Nxb6 {[%clk 0:00:03.7]} 45... Rxd4 {[%clk 0:00:03.6]} 46.
Nxd7 {[%clk 0:00:03.8]} 46... Rxa4 {[%clk 0:00:03.9]} 47. b6 {[%clk 0:00:04.2]}
47... Rb4 {[%clk 0:00:04.2]} 48. Ke3 {[%clk 0:00:03.9]} 48... Kf7 {[%clk
0:00:04.5]} 49. Kd3 {[%clk 0:00:04.4]} 49... Ke7 {[%clk 0:00:05.1]} 50. Kc3
{[%clk 0:00:04.9]} 50... Rb1 {[%clk 0:00:05.5]} 51. Ne5 {[%clk 0:00:02]} 51...
Rxb6 {[%clk 0:00:05.7]} 52. Kd4 {[%clk 0:00:02.7]} 52... Rb2 {[%clk 0:00:05.6]}
53. g4 {[%clk 0:00:03.1]} 53... Rh2 {[%clk 0:00:05.1]} 54. Ke4 {[%clk
0:00:03.3]} 54... Rxh3 {[%clk 0:00:05.3]} 55. Nc4 {[%clk 0:00:03.8]} 55... Rh4
{[%clk 0:00:04.8]} 56. Ne5 {[%clk 0:00:02.2]} 56... Rh1 {[%clk 0:00:04.2]} 57.
Kf4 {[%clk 0:00:02.8]} 57... Re1 {[%clk 0:00:04]} 58. Nc4 {[%clk 0:00:02.5]}
58... Rc1 {[%clk 0:00:03.6]} 59. Ne5 {[%clk 0:00:02.8]} 59... Rd1 {[%clk
0:00:03.9]} 60. Nc6+ {[%clk 0:00:02.3]} 60... Kd6 {[%clk 0:00:04]} 61. Ne5
{[%clk 0:00:02.7]} 61... Rd4+ {[%clk 0:00:04]} 62. Kg5 {[%clk 0:00:03.1]} 62...
Kxe5 {[%clk 0:00:04.7]} 63. Kh6 {[%clk 0:00:04]} 63... Rxg4 {[%clk 0:00:05]} 64.
Kxh7 {[%clk 0:00:04.5]} 64... Kxd5 {[%clk 0:00:05.3]} 65. Kh6 {[%clk 0:00:05.2]}
65... Ke5 {[%clk 0:00:05.8]} 0-1

[Event "Early-Titled-Tuesday-Blitz-October-03-2023"]
[Site "Chess.com"]
[Date "2023.10.03"]
[Round "11"]
[White "Kirill_Klukin"]
[Black "FoxOnTheRun97"]
[Result "0-1"]
[WhiteElo "2683"]
[BlackElo "2545"]
[TimeControl "180+1"]
[EndTime "10:09:01 PDT"]
[Termination "FoxOnTheRun97 won by checkmate"]

1. d4 {[%clk 0:03:00.9]} 1... Nf6 {[%clk 0:02:59.9]} 2. Nf3 {[%clk 0:02:57.2]}
2... e6 {[%clk 0:02:59.7]} 3. e3 {[%clk 0:02:57.1]} 3... d5 {[%clk 0:02:58.8]}
4. Bd3 {[%clk 0:02:57.8]} 4... Bd6 {[%clk 0:02:58.4]} 5. O-O {[%clk 0:02:58.5]}
5... b6 {[%clk 0:02:58.7]} 6. b3 {[%clk 0:02:59.2]} 6... Bb7 {[%clk 0:02:58.9]}
7. Bb2 {[%clk 0:03:00]} 7... O-O {[%clk 0:02:58.6]} 8. Nbd2 {[%clk 0:03:00.7]}
8... Qe7 {[%clk 0:02:58.3]} 9. Qe2 {[%clk 0:02:59.5]} 9... a5 {[%clk 0:02:57.7]}
10. a3 {[%clk 0:02:55.9]} 10... Ba6 {[%clk 0:02:50.6]} 11. Ne5 {[%clk
0:02:53.8]} 11... Bxd3 {[%clk 0:02:49.3]} 12. cxd3 {[%clk 0:02:52.7]} 12... Nfd7
{[%clk 0:02:43.1]} 13. f4 {[%clk 0:02:52.6]} 13... f6 {[%clk 0:02:42]} 14. Nxd7
{[%clk 0:02:43.4]} 14... Nxd7 {[%clk 0:02:41.7]} 15. Qf3 {[%clk 0:02:34.9]}
15... Rac8 {[%clk 0:02:26]} 16. e4 {[%clk 0:02:22]} 16... Qf7 {[%clk 0:02:25]}
17. Rac1 {[%clk 0:02:17]} 17... c5 {[%clk 0:02:20.8]} 18. dxc5 {[%clk
0:02:07.2]} 18... Bxc5+ {[%clk 0:02:11.1]} 19. Kh1 {[%clk 0:02:06.7]} 19... Bd6
{[%clk 0:02:08.7]} 20. f5 {[%clk 0:01:53.9]} 20... d4 {[%clk 0:01:52.4]} 21. Nc4
{[%clk 0:01:50.3]} 21... Bc5 {[%clk 0:01:36.8]} 22. fxe6 {[%clk 0:01:43.1]}
22... Qxe6 {[%clk 0:01:37.7]} 23. Qf5 {[%clk 0:01:27.4]} 23... Qxf5 {[%clk
0:01:32.6]} 24. Rxf5 {[%clk 0:01:28.3]} 24... Rfd8 {[%clk 0:00:54.1]} 25. a4
{[%clk 0:01:20.9]} 25... Nb8 {[%clk 0:00:50.7]} 26. g3 {[%clk 0:00:51.9]} 26...
Nc6 {[%clk 0:00:49.8]} 27. Kg2 {[%clk 0:00:45.6]} 27... Kf7 {[%clk 0:00:42.8]}
28. g4 {[%clk 0:00:39.8]} 28... Ke6 {[%clk 0:00:41.3]} 29. h4 {[%clk 0:00:40.1]}
29... g6 {[%clk 0:00:40.3]} 30. Rf3 {[%clk 0:00:39.7]} 30... Ne5 {[%clk
0:00:37.6]} 31. Nxe5 {[%clk 0:00:39.8]} 31... fxe5 {[%clk 0:00:37.6]} 32. Rc4
{[%clk 0:00:39.7]} 32... Be7 {[%clk 0:00:37.1]} 33. Kg3 {[%clk 0:00:37.2]} 33...
Rb8 {[%clk 0:00:31]} 34. Rc6+ {[%clk 0:00:36.1]} 34... Rd6 {[%clk 0:00:30.9]}
35. Rc7 {[%clk 0:00:29.9]} 35... Rd7 {[%clk 0:00:20.1]} 36. Rc6+ {[%clk
0:00:29.3]} 36... Rd6 {[%clk 0:00:20.1]} 37. Rc7 {[%clk 0:00:29.8]} 37... Rd7
{[%clk 0:00:20.7]} 38. Rc6+ {[%clk 0:00:06.7]} 38... Bd6 {[%clk 0:00:19]} 39.
Ba3 {[%clk 0:00:05.8]} 39... Ke7 {[%clk 0:00:15.1]} 40. Rxd6 {[%clk 0:00:02.8]}
40... Rxd6 {[%clk 0:00:16]} 41. Bxd6+ {[%clk 0:00:03.2]} 41... Kxd6 {[%clk
0:00:15.9]} 42. Rf6+ {[%clk 0:00:04]} 42... Kc5 {[%clk 0:00:14.8]} 43. g5 {[%clk
0:00:03.7]} 43... Kb4 {[%clk 0:00:14.7]} 44. Re6 {[%clk 0:00:04.5]} 44... Kxb3
{[%clk 0:00:09.1]} 45. Rxe5 {[%clk 0:00:05.1]} 45... Kxa4 {[%clk 0:00:09.5]} 46.
Rd5 {[%clk 0:00:05.3]} 46... Kb3 {[%clk 0:00:09.1]} 47. Rxd4 {[%clk 0:00:03.9]}
47... a4 {[%clk 0:00:09.6]} 48. Rc4 {[%clk 0:00:02.9]} 48... a3 {[%clk
0:00:09.6]} 49. Rc1 {[%clk 0:00:03.6]} 49... Kb2 {[%clk 0:00:07]} 50. Rf1 {[%clk
0:00:03.6]} 50... a2 {[%clk 0:00:07.5]} 51. Rf2+ {[%clk 0:00:04.1]} 51... Kb1
{[%clk 0:00:07.2]} 52. Rf1+ {[%clk 0:00:04.7]} 52... Kb2 {[%clk 0:00:06.7]} 53.
Rf2+ {[%clk 0:00:05.3]} 53... Kb3 {[%clk 0:00:07.3]} 54. Rf1 {[%clk 0:00:06]}
54... Ra8 {[%clk 0:00:07.1]} 55. d4 {[%clk 0:00:06.6]} 55... a1=Q {[%clk
0:00:07]} 56. Rxa1 {[%clk 0:00:07.4]} 56... Rxa1 {[%clk 0:00:07.2]} 57. Kf4
{[%clk 0:00:08.3]} 57... Kc4 {[%clk 0:00:07.3]} 58. d5 {[%clk 0:00:08.7]} 58...
Kc5 {[%clk 0:00:06.2]} 59. Ke5 {[%clk 0:00:09]} 59... Rd1 {[%clk 0:00:06.3]} 60.
Ke6 {[%clk 0:00:08.2]} 60... b5 {[%clk 0:00:07]} 61. Kf7 {[%clk 0:00:07.5]}
61... b4 {[%clk 0:00:06.7]} 62. Kg7 {[%clk 0:00:08.2]} 62... b3 {[%clk
0:00:06.8]} 63. Kxh7 {[%clk 0:00:09.1]} 63... b2 {[%clk 0:00:07.2]} 64. h5
{[%clk 0:00:10]} 64... gxh5 {[%clk 0:00:05.4]} 65. g6 {[%clk 0:00:10.5]} 65...
b1=Q {[%clk 0:00:05.2]} 66. d6 {[%clk 0:00:11.4]} 66... Rxd6 {[%clk 0:00:04.7]}
67. e5 {[%clk 0:00:11.8]} 67... Rd7+ {[%clk 0:00:04.6]} 68. Kh6 {[%clk
0:00:10.3]} 68... Qc1+ {[%clk 0:00:04.8]} 69. Kxh5 {[%clk 0:00:10.3]} 69... Qf4
{[%clk 0:00:05.1]} 70. e6 {[%clk 0:00:08.9]} 70... Rd1 {[%clk 0:00:05]} 71. g7
{[%clk 0:00:08.9]} 71... Qg3 {[%clk 0:00:04.4]} 72. g8=Q {[%clk 0:00:09.5]}
72... Rh1# {[%clk 0:00:04.5]} 0-1

[Event "Early-Titled-Tuesday-Blitz-October-03-2023"]
[Site "Chess.com"]
[Date "2023.10.03"]
[Round "11"]
[White "venturov"]
[Black "ferrufino64"]
[Result "1-0"]
[WhiteElo "2498"]
[BlackElo "2239"]
[TimeControl "180+1"]
[EndTime "10:09:04 PDT"]
[Termination "venturov won by checkmate"]

1. e4 {[%clk 0:03:00.9]} 1... c5 {[%clk 0:02:56.2]} 2. Nf3 {[%clk 0:02:58]} 2...
d6 {[%clk 0:02:52.8]} 3. Bb5+ {[%clk 0:02:53]} 3... Nc6 {[%clk 0:02:34.5]} 4.
O-O {[%clk 0:02:48.2]} 4... Nf6 {[%clk 0:02:31.2]} 5. Re1 {[%clk 0:02:38.7]}
5... e6 {[%clk 0:02:28.4]} 6. c3 {[%clk 0:02:30.1]} 6... Be7 {[%clk 0:02:25.5]}
7. d4 {[%clk 0:02:29.7]} 7... cxd4 {[%clk 0:02:26]} 8. cxd4 {[%clk 0:02:30.6]}
8... O-O {[%clk 0:02:26.4]} 9. Nc3 {[%clk 0:02:31]} 9... a6 {[%clk 0:02:26.2]}
10. Bf1 {[%clk 0:02:29.7]} 10... b5 {[%clk 0:02:26.5]} 11. a3 {[%clk 0:02:10.2]}
11... Bb7 {[%clk 0:02:26.2]} 12. Qe2 {[%clk 0:02:10]} 12... Rc8 {[%clk
0:02:26.4]} 13. Rd1 {[%clk 0:02:04.7]} 13... Re8 {[%clk 0:02:23.1]} 14. e5
{[%clk 0:02:04.5]} 14... Nd5 {[%clk 0:02:17.6]} 15. Ne4 {[%clk 0:02:00.6]} 15...
Qc7 {[%clk 0:02:06.3]} 16. Ng3 {[%clk 0:01:44.1]} 16... Red8 {[%clk 0:01:56.6]}
17. h4 {[%clk 0:01:33.9]} 17... Na5 {[%clk 0:01:41.3]} 18. Bg5 {[%clk
0:01:29.3]} 18... dxe5 {[%clk 0:01:32.1]} 19. dxe5 {[%clk 0:01:26.7]} 19... Nb3
{[%clk 0:01:30.4]} 20. Rab1 {[%clk 0:01:24.9]} 20... Qc2 {[%clk 0:01:28.2]} 21.
Qxc2 {[%clk 0:01:18.9]} 21... Rxc2 {[%clk 0:01:26.9]} 22. Bxe7 {[%clk
0:01:19.8]} 22... Rdc8 {[%clk 0:01:14.3]} 23. Bg5 {[%clk 0:01:17.5]} 23... Nb6
{[%clk 0:01:03.3]} 24. Bd3 {[%clk 0:01:15.3]} 24... R2c7 {[%clk 0:01:02.4]} 25.
Be3 {[%clk 0:01:11.9]} 25... Na4 {[%clk 0:01:01.7]} 26. Nd4 {[%clk 0:01:09.1]}
26... Na5 {[%clk 0:00:54.9]} 27. h5 {[%clk 0:01:08.3]} 27... h6 {[%clk
0:00:52.3]} 28. Be4 {[%clk 0:01:08.2]} 28... Kf8 {[%clk 0:00:40.7]} 29. Bxb7
{[%clk 0:01:07.3]} 29... Nxb7 {[%clk 0:00:40.4]} 30. Ne4 {[%clk 0:01:07.7]}
30... Ke7 {[%clk 0:00:39.1]} 31. Nd6 {[%clk 0:01:06.9]} 31... Rb8 {[%clk
0:00:32.4]} 32. Nxb7 {[%clk 0:01:06.4]} 32... Rbxb7 {[%clk 0:00:32.3]} 33. Nb3
{[%clk 0:01:04.3]} 33... Rc2 {[%clk 0:00:29.4]} 34. Rd2 {[%clk 0:01:02.2]} 34...
Rbc7 {[%clk 0:00:29.1]} 35. Rxc2 {[%clk 0:01:01.9]} 35... Rxc2 {[%clk 0:00:30]}
36. Bd4 {[%clk 0:00:56.1]} 36... f6 {[%clk 0:00:30.4]} 37. f4 {[%clk 0:00:54.3]}
37... fxe5 {[%clk 0:00:29.9]} 38. Bxe5 {[%clk 0:00:55.2]} 38... Kf7 {[%clk
0:00:29.8]} 39. Na5 {[%clk 0:00:54]} 39... g6 {[%clk 0:00:29.1]} 40. hxg6+
{[%clk 0:00:53.3]} 40... Kxg6 {[%clk 0:00:30]} 41. Nb7 {[%clk 0:00:53.4]} 41...
Kf5 {[%clk 0:00:28.6]} 42. Nd6+ {[%clk 0:00:53.3]} 42... Kg4 {[%clk 0:00:28.1]}
43. Ne4 {[%clk 0:00:53.6]} 43... h5 {[%clk 0:00:25.4]} 44. Nf2+ {[%clk
0:00:52.8]} 44... Kf5 {[%clk 0:00:25.5]} 45. Kf1 {[%clk 0:00:51.7]} 45... Nc5
{[%clk 0:00:24.6]} 46. Rd1 {[%clk 0:00:50.4]} 46... h4 {[%clk 0:00:22.6]} 47.
Rd8 {[%clk 0:00:49.4]} 47... Rc1+ {[%clk 0:00:21.2]} 48. Ke2 {[%clk 0:00:46.5]}
48... Rc2+ {[%clk 0:00:21.3]} 49. Kf3 {[%clk 0:00:47.2]} 49... Na4 {[%clk
0:00:14.9]} 50. Rf8+ {[%clk 0:00:46.9]} 50... Kg6 {[%clk 0:00:15.4]} 51. Rf6+
{[%clk 0:00:46.3]} 51... Kh7 {[%clk 0:00:15.3]} 52. Ne4 {[%clk 0:00:43.4]} 52...
Rc6 {[%clk 0:00:12.1]} 53. Ng5+ {[%clk 0:00:44.3]} 53... Kg8 {[%clk 0:00:11.7]}
54. Rf7 {[%clk 0:00:43.5]} 54... Nc5 {[%clk 0:00:10.6]} 55. Nh7 {[%clk
0:00:41.7]} 55... Kxf7 {[%clk 0:00:09.7]} 56. Ng5+ {[%clk 0:00:40.1]} 56... Kg6
{[%clk 0:00:10.2]} 57. Kg4 {[%clk 0:00:39.1]} 57... Nd3 {[%clk 0:00:10.1]} 58.
Nf3 {[%clk 0:00:37.4]} 58... Rc2 {[%clk 0:00:06.7]} 59. Nxh4+ {[%clk 0:00:34]}
59... Kf7 {[%clk 0:00:07.2]} 60. Bd4 {[%clk 0:00:31.9]} 60... Nxb2 {[%clk
0:00:06.9]} 61. g3 {[%clk 0:00:30.5]} 61... Nc4 {[%clk 0:00:07.1]} 62. Bc5
{[%clk 0:00:28]} 62... Na5 {[%clk 0:00:06.4]} 63. Bd6 {[%clk 0:00:25.2]} 63...
Nc4 {[%clk 0:00:05.6]} 64. Bc5 {[%clk 0:00:24.8]} 64... Ra2 {[%clk 0:00:05.8]}
65. Nf3 {[%clk 0:00:24.2]} 65... Nxa3 {[%clk 0:00:06.1]} 66. Ne5+ {[%clk
0:00:24.3]} 66... Ke8 {[%clk 0:00:06.6]} 67. Kg5 {[%clk 0:00:24]} 67... Nc2
{[%clk 0:00:06.4]} 68. Kf6 {[%clk 0:00:21.8]} 68... b4 {[%clk 0:00:06.9]} 69.
Kxe6 {[%clk 0:00:20.3]} 69... b3 {[%clk 0:00:06.6]} 70. f5 {[%clk 0:00:19]}
70... b2 {[%clk 0:00:03.6]} 71. f6 {[%clk 0:00:19.2]} 71... b1=Q {[%clk
0:00:01.5]} 72. f7+ {[%clk 0:00:19.3]} 72... Kd8 {[%clk 0:00:02.2]} 73. f8=Q+
{[%clk 0:00:20.1]} 73... Kc7 {[%clk 0:00:03.1]} 74. Qe7+ {[%clk 0:00:16.2]}
74... Kb8 {[%clk 0:00:03.5]} 75. Nc6+ {[%clk 0:00:16.1]} 75... Kc8 {[%clk
0:00:03.7]} 76. Qd7# {[%clk 0:00:16.4]} 1-0